[Event "Titled Tuesday Blitz April 11 Early 2023"]
[White "Pham, Le Thao Nguyen"]
[Black "Galchenko, Matvey"]
[WhiteFideId "12401226"]
[BlackFideId "24175480"]
[WhiteElo "2286"]
[BlackElo "2423"]
[Result "0-1"]
[Round "06"]
[TimeControl "180+2"]
[Date "2023.04.11"]
[WhiteClock "0:00:10"]
[BlackClock "0:00:04"]

1. d4 {[%clk 0:03:00]}  d5 {[%clk 0:02:59]} 2. Nf3 {[%clk 0:02:59]}  Bf5 {[%clk 0:02:58]} 3. c4 {[%clk 0:02:57]}  e6 {[%clk 0:02:58]} 4. Nc3 {[%clk 0:02:57]}  Nf6 {[%clk 0:02:56]} 5. Qb3 {[%clk 0:02:54]}  Nc6 {[%clk 0:02:56]} 6. a3 {[%clk 0:02:43]}  Na5 {[%clk 0:02:50]} 7. Qa4+ {[%clk 0:02:42]}  c6 {[%clk 0:02:50]} 8. c5 {[%clk 0:02:32]}  b6 {[%clk 0:02:19]} 9. b4 {[%clk 0:02:23]}  Nb7 {[%clk 0:01:15]} 10. Qxc6+ {[%clk 0:02:15]}  Qd7 {[%clk 0:01:14]} 11. Qxd7+ {[%clk 0:02:13]}  Kxd7 {[%clk 0:01:15]} 12. Ne5+ {[%clk 0:02:08]}  Ke8 {[%clk 0:01:12]} 13. Bg5 {[%clk 0:01:24]}  Be7 {[%clk 0:01:01]} 14. e3 {[%clk 0:01:18]}  h6 {[%clk 0:00:32]} 15. Bb5+ {[%clk 0:01:13]}  Kf8 {[%clk 0:00:32]} 16. Bh4 {[%clk 0:01:11]}  g5 {[%clk 0:00:28]} 17. Bg3 {[%clk 0:01:10]}  bxc5 {[%clk 0:00:23]} 18. bxc5 {[%clk 0:00:57]}  Na5 {[%clk 0:00:19]} 19. O-O {[%clk 0:00:53]}  Kg7 {[%clk 0:00:19]} 20. Ra2 {[%clk 0:00:50]}  a6 {[%clk 0:00:18]} 21. Be2 {[%clk 0:00:43]}  Rhc8 {[%clk 0:00:18]} 22. Rb2 {[%clk 0:00:42]}  Ra7 {[%clk 0:00:11]} 23. Rb6 {[%clk 0:00:40]}  Nc4 {[%clk 0:00:10]} 24. Nxc4 {[%clk 0:00:37]}  dxc4 {[%clk 0:00:11]} 25. Bxc4 {[%clk 0:00:37]}  Bxc5 {[%clk 0:00:12]} 26. Rxa6 {[%clk 0:00:25]}  Bb6 {[%clk 0:00:08]} 27. Rxb6 {[%clk 0:00:20]}  Rxc4 {[%clk 0:00:08]} 28. Nb5 {[%clk 0:00:20]}  Ra5 {[%clk 0:00:08]} 29. Be5 {[%clk 0:00:19]}  Kg6 {[%clk 0:00:08]} 30. Nd6 {[%clk 0:00:19]}  Rc2 {[%clk 0:00:08]} 31. h3 {[%clk 0:00:17]}  Ne4 {[%clk 0:00:07]} 32. Nxe4 {[%clk 0:00:17]}  Bxe4 {[%clk 0:00:08]} 33. Bd6 {[%clk 0:00:17]}  Bd3 {[%clk 0:00:05]} 34. Rd1 {[%clk 0:00:16]}  Be4 {[%clk 0:00:05]} 35. Bb4 {[%clk 0:00:16]}  Rf5 {[%clk 0:00:04]} 36. Re1 {[%clk 0:00:14]}  Rfxf2 {[%clk 0:00:04]} 37. Bd6 {[%clk 0:00:09]}  Rxg2+ {[%clk 0:00:04]} 38. Kf1 {[%clk 0:00:10]}  Rcf2# {[%clk 0:00:04]} 0-1


[Site "https://www.chess.com"]

[Event "Titled Tuesday Blitz April 11 Early 2023"]
[White "Mahdavi, Reza"]
[Black "Cori T., Deysi"]
[WhiteFideId "12595926"]
[BlackFideId "3801934"]
[WhiteElo "2357"]
[BlackElo "2292"]
[Result "1-0"]
[Round "06"]
[TimeControl "180+2"]
[Date "2023.04.11"]
[WhiteClock "0:01:37"]
[BlackClock "0:00:11"]

1. Nf3 {[%clk 0:02:43]}  d6 {[%clk 0:02:59]} 2. d4 {[%clk 0:02:43]}  g6 {[%clk 0:03:00]} 3. g3 {[%clk 0:02:43]}  Bg7 {[%clk 0:03:00]} 4. b3 {[%clk 0:02:44]}  Nd7 {[%clk 0:03:00]} 5. Bb2 {[%clk 0:02:45]}  e5 {[%clk 0:02:56]} 6. dxe5 {[%clk 0:02:46]}  Nxe5 {[%clk 0:02:56]} 7. Nxe5 {[%clk 0:02:44]}  dxe5 {[%clk 0:02:56]} 8. Qxd8+ {[%clk 0:02:43]}  Kxd8 {[%clk 0:02:57]} 9. Nd2 {[%clk 0:02:44]}  f6 {[%clk 0:02:52]} 10. O-O-O {[%clk 0:02:32]}  Ne7 {[%clk 0:02:51]} 11. Bg2 {[%clk 0:02:26]}  Ke8 {[%clk 0:02:51]} 12. Nc4 {[%clk 0:02:22]}  Kf7 {[%clk 0:02:33]} 13. Ba3 {[%clk 0:02:11]}  Rb8 {[%clk 0:02:03]} 14. Rd2 {[%clk 0:01:59]}  Be6 {[%clk 0:01:56]} 15. Na5 {[%clk 0:01:49]}  b6 {[%clk 0:01:09]} 16. Bxe7 {[%clk 0:01:48]}  bxa5 {[%clk 0:01:09]} 17. Bc5 {[%clk 0:01:49]}  a4 {[%clk 0:01:04]} 18. Rhd1 {[%clk 0:01:46]}  axb3 {[%clk 0:01:03]} 19. axb3 {[%clk 0:01:47]}  a5 {[%clk 0:01:00]} 20. Rd7+ {[%clk 0:01:47]}  Bxd7 {[%clk 0:00:39]} 21. Rxd7+ {[%clk 0:01:47]}  Ke6 {[%clk 0:00:37]} 22. Re7+ {[%clk 0:01:45]}  Kf5 {[%clk 0:00:36]} 23. e4+ {[%clk 0:01:46]}  Kg4 {[%clk 0:00:12]} 24. h3+ {[%clk 0:01:39]}  Kg5 {[%clk 0:00:11]} 25. Be3+ {[%clk 0:01:37]} 1-0


[Site "https://www.chess.com"]

[Event "Titled Tuesday Blitz April 11 Early 2023"]
[White "Aradhya, Garg"]
[Black "Kozin, Yuri"]
[WhiteFideId "25006746"]
[BlackFideId "4129920"]
[WhiteElo "2263"]
[BlackElo "2557"]
[Result "1-0"]
[Round "06"]
[TimeControl "180+2"]
[Date "2023.04.11"]
[WhiteClock "0:01:30"]
[BlackClock "0:00:17"]

1. d4 {[%clk 0:02:54]}  d5 {[%clk 0:02:59]} 2. c4 {[%clk 0:02:53]}  c6 {[%clk 0:02:59]} 3. Nf3 {[%clk 0:02:52]}  Nf6 {[%clk 0:02:59]} 4. Nc3 {[%clk 0:02:48]}  dxc4 {[%clk 0:02:59]} 5. a4 {[%clk 0:02:47]}  Bf5 {[%clk 0:02:59]} 6. Ne5 {[%clk 0:02:47]}  e6 {[%clk 0:02:59]} 7. f3 {[%clk 0:02:47]}  Bb4 {[%clk 0:03:00]} 8. e4 {[%clk 0:02:47]}  Bxe4 {[%clk 0:03:00]} 9. fxe4 {[%clk 0:02:48]}  Nxe4 {[%clk 0:03:01]} 10. Bd2 {[%clk 0:02:48]}  Qxd4 {[%clk 0:03:01]} 11. Nxe4 {[%clk 0:02:48]}  Qxe4+ {[%clk 0:03:01]} 12. Qe2 {[%clk 0:02:47]}  Bxd2+ {[%clk 0:03:02]} 13. Kxd2 {[%clk 0:02:48]}  Qd5+ {[%clk 0:03:03]} 14. Kc2 {[%clk 0:02:47]}  Na6 {[%clk 0:03:03]} 15. Qe3 {[%clk 0:02:42]}  f6 {[%clk 0:02:46]} 16. Nxc4 {[%clk 0:02:37]}  Qf5+ {[%clk 0:02:38]} 17. Kc3 {[%clk 0:02:24]}  O-O {[%clk 0:02:26]} 18. Bd3 {[%clk 0:02:23]}  Qc5 {[%clk 0:01:30]} 19. Qxe6+ {[%clk 0:02:14]}  Kh8 {[%clk 0:01:29]} 20. Qd6 {[%clk 0:02:15]}  Qf2 {[%clk 0:01:16]} 21. Raf1 {[%clk 0:02:08]}  Qxg2 {[%clk 0:01:07]} 22. Rhg1 {[%clk 0:02:05]}  Qh3 {[%clk 0:01:04]} 23. Qg3 {[%clk 0:01:55]}  Qh6 {[%clk 0:00:58]} 24. Rf4 {[%clk 0:01:54]}  f5 {[%clk 0:00:50]} 25. Rxf5 {[%clk 0:01:46]}  Rxf5 {[%clk 0:00:48]} 26. Bxf5 {[%clk 0:01:47]}  Qf6+ {[%clk 0:00:48]} 27. Qe5 {[%clk 0:01:47]}  Rf8 {[%clk 0:00:44]} 28. Qxf6 {[%clk 0:01:46]}  Rxf6 {[%clk 0:00:45]} 29. Bd3 {[%clk 0:01:46]}  Nc5 {[%clk 0:00:43]} 30. Bc2 {[%clk 0:01:46]}  Rf3+ {[%clk 0:00:39]} 31. Kd4 {[%clk 0:01:46]}  Ne6+ {[%clk 0:00:32]} 32. Ke5 {[%clk 0:01:46]}  Nf8 {[%clk 0:00:25]} 33. Rd1 {[%clk 0:01:41]}  Rf2 {[%clk 0:00:21]} 34. Rd8 {[%clk 0:01:39]}  g6 {[%clk 0:00:20]} 35. Rd2 {[%clk 0:01:32]}  Rf7 {[%clk 0:00:17]} 36. Nd6 {[%clk 0:01:29]}  Re7+ {[%clk 0:00:17]} 37. Kf6 {[%clk 0:01:29]}  Re6+ {[%clk 0:00:17]} 38. Kf7 {[%clk 0:01:30]} 1-0


[Site "https://www.chess.com"]

[Event "Titled Tuesday Blitz April 11 Early 2023"]
[White "Weetik, Vjacheslav"]
[Black "Odegov, Artem"]
[WhiteFideId "4153472"]
[BlackFideId "34183644"]
[WhiteElo "2469"]
[BlackElo "2300"]
[Result "0-1"]
[Round "06"]
[TimeControl "180+2"]
[Date "2023.04.11"]
[WhiteClock "0:00:02"]
[BlackClock "0:00:07"]

1. d4 {[%clk 0:02:59]}  d5 {[%clk 0:02:59]} 2. c4 {[%clk 0:02:59]}  e6 {[%clk 0:02:59]} 3. Nf3 {[%clk 0:03:00]}  c5 {[%clk 0:03:00]} 4. e3 {[%clk 0:03:00]}  Nc6 {[%clk 0:02:59]} 5. Nc3 {[%clk 0:02:59]}  Nf6 {[%clk 0:02:58]} 6. a3 {[%clk 0:03:00]}  dxc4 {[%clk 0:02:59]} 7. Bxc4 {[%clk 0:02:59]}  a6 {[%clk 0:03:00]} 8. Ba2 {[%clk 0:02:58]}  b5 {[%clk 0:02:58]} 9. O-O {[%clk 0:02:55]}  Bb7 {[%clk 0:02:58]} 10. Qe2 {[%clk 0:02:44]}  Qb6 {[%clk 0:02:58]} 11. Rd1 {[%clk 0:02:38]}  Rd8 {[%clk 0:02:57]} 12. d5 {[%clk 0:02:29]}  exd5 {[%clk 0:02:54]} 13. Nxd5 {[%clk 0:02:29]}  Nxd5 {[%clk 0:02:54]} 14. Bxd5 {[%clk 0:02:25]}  Be7 {[%clk 0:02:54]} 15. e4 {[%clk 0:02:25]}  O-O {[%clk 0:02:54]} 16. Be3 {[%clk 0:02:22]}  Qc7 {[%clk 0:02:41]} 17. Rac1 {[%clk 0:02:18]}  c4 {[%clk 0:02:40]} 18. g3 {[%clk 0:01:38]}  Bd6 {[%clk 0:02:25]} 19. Nh4 {[%clk 0:01:34]}  g6 {[%clk 0:02:21]} 20. f4 {[%clk 0:01:25]}  Rfe8 {[%clk 0:02:18]} 21. Nf3 {[%clk 0:01:13]}  Bf8 {[%clk 0:01:56]} 22. Ng5 {[%clk 0:01:03]}  Rd7 {[%clk 0:01:46]} 23. Qg4 {[%clk 0:00:56]}  h5 {[%clk 0:01:28]} 24. Qf3 {[%clk 0:00:42]}  Bg7 {[%clk 0:01:21]} 25. e5 {[%clk 0:00:36]}  Rxd5 {[%clk 0:00:54]} 26. Rxd5 {[%clk 0:00:30]}  Nxe5 {[%clk 0:00:50]} 27. fxe5 {[%clk 0:00:27]}  Rxe5 {[%clk 0:00:50]} 28. Rcd1 {[%clk 0:00:15]}  Qe7 {[%clk 0:00:26]} 29. Rd8+ {[%clk 0:00:10]}  Bf8 {[%clk 0:00:25]} 30. Rxf8+ {[%clk 0:00:04]}  Kxf8 {[%clk 0:00:21]} 31. Rd8+ {[%clk 0:00:04]}  Kg7 {[%clk 0:00:19]} 32. Qf4 {[%clk 0:00:02]}  Rxe3 {[%clk 0:00:15]} 33. Qd4+ {[%clk 0:00:02]}  Re5 {[%clk 0:00:15]} 34. Rd7 {[%clk 0:00:01]}  Qxg5 {[%clk 0:00:11]} 35. Rxb7 {[%clk 0:00:02]}  Qf6 {[%clk 0:00:08]} 36. Qf2 {[%clk 0:00:02]}  Rf5 {[%clk 0:00:07]} 37. Qe2 {[%clk 0:00:01]}  Qd4+ {[%clk 0:00:07]} 38. Kg2 {[%clk 0:00:02]}  Qd5+ {[%clk 0:00:07]} 0-1


[Site "https://www.chess.com"]

[Event "Titled Tuesday Blitz April 11 Early 2023"]
[White "Sharapov, Evgeny"]
[Black "Levitskiy, Andrey"]
[WhiteFideId "14103133"]
[BlackFideId "14132885"]
[WhiteElo "2367"]
[BlackElo "2341"]
[Result "1-0"]
[Round "06"]
[TimeControl "180+2"]
[Date "2023.04.11"]
[WhiteClock "0:01:12"]
[BlackClock "0:00:02"]

1. e4 {[%clk 0:02:59]}  e6 {[%clk 0:02:59]} 2. d4 {[%clk 0:02:59]}  d5 {[%clk 0:03:00]} 3. Nc3 {[%clk 0:03:00]}  Bb4 {[%clk 0:03:00]} 4. e5 {[%clk 0:03:00]}  c5 {[%clk 0:03:00]} 5. a3 {[%clk 0:03:00]}  Bxc3+ {[%clk 0:03:01]} 6. bxc3 {[%clk 0:03:00]}  Qa5 {[%clk 0:03:02]} 7. Bd2 {[%clk 0:03:00]}  Qa4 {[%clk 0:03:02]} 8. Qb1 {[%clk 0:02:59]}  c4 {[%clk 0:03:02]} 9. Ne2 {[%clk 0:02:59]}  Nc6 {[%clk 0:03:03]} 10. Ng3 {[%clk 0:02:59]}  Nge7 {[%clk 0:02:57]} 11. Nh5 {[%clk 0:02:58]}  Rg8 {[%clk 0:02:57]} 12. Be2 {[%clk 0:02:58]}  Bd7 {[%clk 0:02:57]} 13. O-O {[%clk 0:02:57]}  O-O-O {[%clk 0:02:57]} 14. Kh1 {[%clk 0:02:55]}  Rdf8 {[%clk 0:02:54]} 15. f4 {[%clk 0:02:51]}  f5 {[%clk 0:02:48]} 16. Rf3 {[%clk 0:02:42]}  Be8 {[%clk 0:02:43]} 17. Rg3 {[%clk 0:02:37]}  Bxh5 {[%clk 0:02:39]} 18. Bxh5 {[%clk 0:02:36]}  g6 {[%clk 0:02:39]} 19. Be2 {[%clk 0:02:34]}  h6 {[%clk 0:02:38]} 20. Rh3 {[%clk 0:02:32]}  Rh8 {[%clk 0:02:35]} 21. Qb2 {[%clk 0:02:27]}  Rfg8 {[%clk 0:02:34]} 22. Rb1 {[%clk 0:02:26]}  b6 {[%clk 0:02:34]} 23. Rg1 {[%clk 0:02:20]}  Nd8 {[%clk 0:02:10]} 24. Bd1 {[%clk 0:02:11]}  Nf7 {[%clk 0:02:04]} 25. Qb4 {[%clk 0:02:10]}  Qxb4 {[%clk 0:02:02]} 26. cxb4 {[%clk 0:02:08]}  g5 {[%clk 0:01:51]} 27. fxg5 {[%clk 0:02:08]}  hxg5 {[%clk 0:01:46]} 28. Rxh8 {[%clk 0:02:07]}  Rxh8 {[%clk 0:01:44]} 29. g3 {[%clk 0:02:06]}  Kc7 {[%clk 0:01:31]} 30. Kg2 {[%clk 0:02:06]}  b5 {[%clk 0:01:03]} 31. c3 {[%clk 0:02:06]}  Nc6 {[%clk 0:00:53]} 32. a4 {[%clk 0:02:04]}  bxa4 {[%clk 0:00:48]} 33. Bxa4 {[%clk 0:02:03]}  a5 {[%clk 0:00:44]} 34. Bxc6 {[%clk 0:01:58]}  Kxc6 {[%clk 0:00:45]} 35. bxa5 {[%clk 0:01:59]}  Ra8 {[%clk 0:00:45]} 36. Ra1 {[%clk 0:01:58]}  g4 {[%clk 0:00:44]} 37. h3 {[%clk 0:01:52]}  gxh3+ {[%clk 0:00:45]} 38. Kxh3 {[%clk 0:01:52]}  Nd8 {[%clk 0:00:43]} 39. a6 {[%clk 0:01:49]}  Kb6 {[%clk 0:00:38]} 40. Kh4 {[%clk 0:01:49]}  Nf7 {[%clk 0:00:32]} 41. Kh5 {[%clk 0:01:48]}  Ka7 {[%clk 0:00:23]} 42. Kg6 {[%clk 0:01:48]}  Nd8 {[%clk 0:00:05]} 43. Kf6 {[%clk 0:01:48]}  Kb6 {[%clk 0:00:06]} 44. Ke7 {[%clk 0:01:41]}  Kc7 {[%clk 0:00:06]} 45. a7 {[%clk 0:01:39]}  Nc6+ {[%clk 0:00:03]} 46. Kxe6 {[%clk 0:01:39]}  Nxa7 {[%clk 0:00:03]} 47. Kxd5 {[%clk 0:01:38]}  Rd8+ {[%clk 0:00:03]} 48. Kxc4 {[%clk 0:01:37]}  Nc8 {[%clk 0:00:03]} 49. Bf4 {[%clk 0:01:34]}  Nb6+ {[%clk 0:00:04]} 50. Kd3 {[%clk 0:01:34]}  Kc6 {[%clk 0:00:04]} 51. c4 {[%clk 0:01:34]}  Rh8 {[%clk 0:00:03]} 52. d5+ {[%clk 0:01:34]}  Kb7 {[%clk 0:00:03]} 53. Rb1 {[%clk 0:01:28]}  Ka6 {[%clk 0:00:03]} 54. e6 {[%clk 0:01:24]}  Rc8 {[%clk 0:00:02]} 55. Rc1 {[%clk 0:01:18]}  Na4 {[%clk 0:00:02]} 56. Ra1 {[%clk 0:01:12]} 1-0


[Site "https://www.chess.com"]

[Event "Titled Tuesday Blitz April 11 Early 2023"]
[White "Ljukin, Sergei"]
[Black "Korchmar, Vasiliy"]
[WhiteFideId "14102200"]
[BlackFideId "24131750"]
[WhiteElo "2312"]
[BlackElo "2370"]
[Result "0-1"]
[Round "06"]
[TimeControl "180+2"]
[Date "2023.04.11"]
[WhiteClock "0:00:34"]
[BlackClock "0:01:20"]

1. e4 {[%clk 0:02:52]}  c5 {[%clk 0:02:59]} 2. Nf3 {[%clk 0:02:52]}  d6 {[%clk 0:03:00]} 3. d4 {[%clk 0:02:52]}  cxd4 {[%clk 0:03:01]} 4. Nxd4 {[%clk 0:02:52]}  Nf6 {[%clk 0:03:02]} 5. Nc3 {[%clk 0:02:52]}  Nc6 {[%clk 0:03:02]} 6. Bc4 {[%clk 0:02:52]}  Qb6 {[%clk 0:02:59]} 7. Nb3 {[%clk 0:02:51]}  e6 {[%clk 0:02:59]} 8. Bg5 {[%clk 0:02:51]}  Be7 {[%clk 0:02:59]} 9. Bxf6 {[%clk 0:02:51]}  gxf6 {[%clk 0:02:58]} 10. Qh5 {[%clk 0:02:50]}  a6 {[%clk 0:02:50]} 11. Rf1 {[%clk 0:02:49]}  Ne5 {[%clk 0:02:50]} 12. Be2 {[%clk 0:02:49]}  Bd7 {[%clk 0:02:46]} 13. f4 {[%clk 0:02:48]}  Ng6 {[%clk 0:02:37]} 14. f5 {[%clk 0:02:36]}  Ne5 {[%clk 0:02:30]} 15. fxe6 {[%clk 0:02:36]}  Bxe6 {[%clk 0:02:30]} 16. O-O-O {[%clk 0:02:35]}  Rg8 {[%clk 0:02:12]} 17. g3 {[%clk 0:02:28]}  Rc8 {[%clk 0:02:01]} 18. Nd5 {[%clk 0:02:10]}  Bxd5 {[%clk 0:02:01]} 19. Rxd5 {[%clk 0:02:09]}  Qe3+ {[%clk 0:02:01]} 20. Rd2 {[%clk 0:01:46]}  d5 {[%clk 0:01:55]} 21. Qf5 {[%clk 0:01:27]}  Rc7 {[%clk 0:01:34]} 22. Qf4 {[%clk 0:01:23]}  Qxe4 {[%clk 0:01:30]} 23. Bd3 {[%clk 0:00:34]}  Qxd3 {[%clk 0:01:20]} 0-1


[Site "https://www.chess.com"]

[Event "Titled Tuesday Blitz April 11 Early 2023"]
[White "Pakleza, Zbigniew"]
[Black "koncheto"]
[WhiteFideId "1119290"]
[WhiteElo "2410"]
[BlackElo "2551"]
[Result "0-1"]
[Round "06"]
[TimeControl "180+2"]
[Date "2023.04.11"]
[WhiteClock "0:00:05"]
[BlackClock "0:00:23"]

1. d4 {[%clk 0:03:00]}  Nf6 {[%clk 0:02:59]} 2. Nf3 {[%clk 0:03:01]}  e6 {[%clk 0:02:59]} 3. Bf4 {[%clk 0:03:01]}  c5 {[%clk 0:03:00]} 4. c3 {[%clk 0:03:01]}  d5 {[%clk 0:03:00]} 5. e3 {[%clk 0:03:01]}  Bd6 {[%clk 0:03:01]} 6. Bg3 {[%clk 0:03:01]}  Qc7 {[%clk 0:02:59]} 7. Nbd2 {[%clk 0:03:01]}  Nbd7 {[%clk 0:02:59]} 8. c4 {[%clk 0:03:02]}  dxc4 {[%clk 0:02:54]} 9. Nxc4 {[%clk 0:03:02]}  Bxg3 {[%clk 0:02:49]} 10. hxg3 {[%clk 0:03:03]}  O-O {[%clk 0:02:49]} 11. Rc1 {[%clk 0:02:57]}  b6 {[%clk 0:02:47]} 12. Bd3 {[%clk 0:02:53]}  h6 {[%clk 0:02:47]} 13. O-O {[%clk 0:02:51]}  Bb7 {[%clk 0:02:46]} 14. Qe2 {[%clk 0:02:33]}  Rac8 {[%clk 0:02:37]} 15. Nfe5 {[%clk 0:02:20]}  Rfd8 {[%clk 0:02:26]} 16. Rc2 {[%clk 0:01:47]}  b5 {[%clk 0:02:04]} 17. Na3 {[%clk 0:01:39]}  c4 {[%clk 0:01:43]} 18. Qe1 {[%clk 0:00:29]}  Nxe5 {[%clk 0:01:33]} 19. dxe5 {[%clk 0:00:30]}  Qxe5 {[%clk 0:01:31]} 20. Be2 {[%clk 0:00:28]}  Be4 {[%clk 0:01:03]} 21. Bf3 {[%clk 0:00:28]}  Bxc2 {[%clk 0:01:02]} 22. Nxc2 {[%clk 0:00:29]}  Qxb2 {[%clk 0:00:59]} 23. Nd4 {[%clk 0:00:30]}  c3 {[%clk 0:00:50]} 24. Nc6 {[%clk 0:00:19]}  Rd7 {[%clk 0:00:40]} 25. Qc1 {[%clk 0:00:10]}  Nd5 {[%clk 0:00:28]} 26. Bxd5 {[%clk 0:00:08]}  exd5 {[%clk 0:00:29]} 27. Nd4 {[%clk 0:00:07]}  b4 {[%clk 0:00:25]} 28. Kh2 {[%clk 0:00:04]}  Qxc1 {[%clk 0:00:21]} 29. Rxc1 {[%clk 0:00:05]}  a5 {[%clk 0:00:21]} 30. g4 {[%clk 0:00:05]}  a4 {[%clk 0:00:22]} 31. Kg3 {[%clk 0:00:05]}  Rb7 {[%clk 0:00:22]} 32. Rb1 {[%clk 0:00:05]}  c2 {[%clk 0:00:22]} 33. Rc1 {[%clk 0:00:05]}  b3 {[%clk 0:00:22]} 34. axb3 {[%clk 0:00:06]}  axb3 {[%clk 0:00:23]} 35. Rxc2 {[%clk 0:00:05]}  bxc2 {[%clk 0:00:23]} 0-1


[Site "https://www.chess.com"]

[Event "Titled Tuesday Blitz April 11 Early 2023"]
[White "Horak, Martin"]
[Black "Tan, Zhongyi"]
[WhiteFideId "367095"]
[BlackFideId "8603642"]
[WhiteElo "2091"]
[BlackElo "2519"]
[Result "1/2-1/2"]
[Round "06"]
[TimeControl "180+2"]
[Date "2023.04.11"]
[WhiteClock "0:00:02"]
[BlackClock "0:00:03"]

1. e4 {[%clk 0:03:00]}  c5 {[%clk 0:02:59]} 2. Nf3 {[%clk 0:02:59]}  d6 {[%clk 0:02:59]} 3. d4 {[%clk 0:02:59]}  cxd4 {[%clk 0:03:00]} 4. Nxd4 {[%clk 0:03:00]}  Nf6 {[%clk 0:03:00]} 5. Nc3 {[%clk 0:03:01]}  g6 {[%clk 0:03:01]} 6. Be3 {[%clk 0:02:38]}  Bg7 {[%clk 0:03:01]} 7. f3 {[%clk 0:02:39]}  O-O {[%clk 0:03:01]} 8. Qd2 {[%clk 0:02:39]}  Nc6 {[%clk 0:03:01]} 9. O-O-O {[%clk 0:02:36]}  d5 {[%clk 0:03:01]} 10. exd5 {[%clk 0:02:32]}  Nxd5 {[%clk 0:03:01]} 11. Nxc6 {[%clk 0:02:33]}  bxc6 {[%clk 0:03:02]} 12. Bd4 {[%clk 0:02:33]}  e5 {[%clk 0:03:01]} 13. Bc5 {[%clk 0:02:32]}  Be6 {[%clk 0:03:02]} 14. Bc4 {[%clk 0:02:30]}  Re8 {[%clk 0:02:21]} 15. h4 {[%clk 0:02:21]}  Qa5 {[%clk 0:02:08]} 16. Ne4 {[%clk 0:02:16]}  Qxd2+ {[%clk 0:02:05]} 17. Nxd2 {[%clk 0:02:06]}  Nf4 {[%clk 0:02:02]} 18. Bxe6 {[%clk 0:01:40]}  Nxe6 {[%clk 0:02:03]} 19. Be3 {[%clk 0:01:39]}  f5 {[%clk 0:01:59]} 20. Nc4 {[%clk 0:01:36]}  a6 {[%clk 0:01:52]} 21. Rd7 {[%clk 0:01:25]}  Rad8 {[%clk 0:01:49]} 22. Rhd1 {[%clk 0:01:24]}  Bf6 {[%clk 0:01:43]} 23. g4 {[%clk 0:01:05]}  Rxd7 {[%clk 0:01:35]} 24. Rxd7 {[%clk 0:01:04]}  Bxh4 {[%clk 0:01:26]} 25. gxf5 {[%clk 0:01:03]}  gxf5 {[%clk 0:01:26]} 26. Rd6 {[%clk 0:00:45]}  f4 {[%clk 0:01:17]} 27. Bb6 {[%clk 0:00:38]}  Ng5 {[%clk 0:01:17]} 28. Rd8 {[%clk 0:00:13]}  Rxd8 {[%clk 0:01:09]} 29. Bxd8 {[%clk 0:00:14]}  Nxf3 {[%clk 0:00:58]} 30. Bxh4 {[%clk 0:00:14]}  Nxh4 {[%clk 0:00:59]} 31. Nxe5 {[%clk 0:00:15]}  c5 {[%clk 0:00:56]} 32. Nd3 {[%clk 0:00:12]}  f3 {[%clk 0:00:52]} 33. Kd2 {[%clk 0:00:12]}  Ng2 {[%clk 0:00:43]} 34. Ne5 {[%clk 0:00:09]}  f2 {[%clk 0:00:38]} 35. Ke2 {[%clk 0:00:09]}  Ne3 {[%clk 0:00:38]} 36. Kxf2 {[%clk 0:00:09]}  Nxc2 {[%clk 0:00:38]} 37. b3 {[%clk 0:00:07]}  Na3 {[%clk 0:00:25]} 38. Ke3 {[%clk 0:00:05]}  Kg7 {[%clk 0:00:24]} 39. Kd3 {[%clk 0:00:05]}  h5 {[%clk 0:00:24]} 40. Nf3 {[%clk 0:00:02]}  Kf6 {[%clk 0:00:23]} 41. Ke4 {[%clk 0:00:02]}  Nb5 {[%clk 0:00:20]} 42. Kd5 {[%clk 0:00:02]}  Nc3+ {[%clk 0:00:19]} 43. Kxc5 {[%clk 0:00:02]}  Nxa2 {[%clk 0:00:20]} 44. Kb6 {[%clk 0:00:02]}  Nb4 {[%clk 0:00:18]} 45. Ka5 {[%clk 0:00:02]}  Nd3 {[%clk 0:00:17]} 46. Kxa6 {[%clk 0:00:03]}  Nc5+ {[%clk 0:00:18]} 47. Kb5 {[%clk 0:00:03]}  Nxb3 {[%clk 0:00:18]} 48. Kc4 {[%clk 0:00:04]}  Nc1 {[%clk 0:00:17]} 49. Kc3 {[%clk 0:00:04]}  Kf5 {[%clk 0:00:18]} 50. Kd2 {[%clk 0:00:04]}  Kf4 {[%clk 0:00:17]} 51. Nh2 {[%clk 0:00:04]}  Kg3 {[%clk 0:00:15]} 52. Nf1+ {[%clk 0:00:03]}  Kf2 {[%clk 0:00:15]} 53. Ne3 {[%clk 0:00:04]}  Nb3+ {[%clk 0:00:15]} 54. Kd3 {[%clk 0:00:04]}  Nc5+ {[%clk 0:00:15]} 55. Kd4 {[%clk 0:00:04]}  Ne6+ {[%clk 0:00:11]} 56. Ke4 {[%clk 0:00:05]}  h4 {[%clk 0:00:11]} 57. Ng4+ {[%clk 0:00:03]}  Kg3 {[%clk 0:00:09]} 58. Ne3 {[%clk 0:00:03]}  h3 {[%clk 0:00:09]} 59. Nf1+ {[%clk 0:00:03]}  Kg2 {[%clk 0:00:07]} 60. Ne3+ {[%clk 0:00:03]}  Kf2 {[%clk 0:00:07]} 61. Ng4+ {[%clk 0:00:03]}  Kg3 {[%clk 0:00:06]} 62. Ne3 {[%clk 0:00:04]}  Ng5+ {[%clk 0:00:05]} 63. Kf5 {[%clk 0:00:04]}  Nf3 {[%clk 0:00:05]} 64. Kg6 {[%clk 0:00:02]}  Ne5+ {[%clk 0:00:03]} 65. Kh5 {[%clk 0:00:03]}  Nc4 {[%clk 0:00:03]} 66. Nf1+ {[%clk 0:00:01]}  Kg2 {[%clk 0:00:04]} 67. Kh4 {[%clk 0:00:02]}  Kxf1 {[%clk 0:00:03]} 68. Kxh3 {[%clk 0:00:02]} 1/2-1/2


[Site "https://www.chess.com"]

[Event "Titled Tuesday Blitz April 11 Early 2023"]
[White "Rendle, Thomas E"]
[Black "egorchess95"]
[WhiteFideId "408760"]
[WhiteElo "2428"]
[BlackElo "2546"]
[Result "1-0"]
[Round "06"]
[TimeControl "180+2"]
[Date "2023.04.11"]
[WhiteClock "0:00:36"]
[BlackClock "0:00:07"]

1. Nf3 {[%clk 0:03:00]}  d5 {[%clk 0:03:00]} 2. e3 {[%clk 0:03:00]}  Nf6 {[%clk 0:02:59]} 3. b3 {[%clk 0:02:59]}  Bf5 {[%clk 0:02:56]} 4. Bb2 {[%clk 0:02:53]}  e6 {[%clk 0:02:56]} 5. g3 {[%clk 0:02:45]}  Be7 {[%clk 0:02:56]} 6. Bg2 {[%clk 0:02:46]}  O-O {[%clk 0:02:56]} 7. O-O {[%clk 0:02:46]}  c5 {[%clk 0:02:56]} 8. d3 {[%clk 0:02:41]}  h6 {[%clk 0:02:56]} 9. Nbd2 {[%clk 0:02:38]}  Nc6 {[%clk 0:02:55]} 10. a3 {[%clk 0:02:35]}  Rc8 {[%clk 0:02:54]} 11. Ne5 {[%clk 0:02:33]}  Nxe5 {[%clk 0:02:49]} 12. Bxe5 {[%clk 0:02:34]}  b5 {[%clk 0:02:42]} 13. Qe2 {[%clk 0:02:27]}  Nd7 {[%clk 0:02:07]} 14. Bb2 {[%clk 0:02:23]}  Nb6 {[%clk 0:02:08]} 15. e4 {[%clk 0:02:21]}  dxe4 {[%clk 0:02:08]} 16. dxe4 {[%clk 0:02:18]}  Bg6 {[%clk 0:02:05]} 17. Rfd1 {[%clk 0:02:15]}  Qc7 {[%clk 0:02:04]} 18. Qxb5 {[%clk 0:02:11]}  c4 {[%clk 0:01:59]} 19. Be5 {[%clk 0:01:55]}  Qc6 {[%clk 0:01:42]} 20. Qxc6 {[%clk 0:01:53]}  Rxc6 {[%clk 0:01:43]} 21. Nf1 {[%clk 0:01:32]}  Rfc8 {[%clk 0:01:15]} 22. a4 {[%clk 0:01:31]}  a5 {[%clk 0:01:06]} 23. Bd4 {[%clk 0:01:24]}  cxb3 {[%clk 0:01:04]} 24. cxb3 {[%clk 0:01:25]}  Nd7 {[%clk 0:00:33]} 25. Ne3 {[%clk 0:01:21]}  Nc5 {[%clk 0:00:26]} 26. Bxc5 {[%clk 0:01:17]}  Rxc5 {[%clk 0:00:27]} 27. Nc4 {[%clk 0:01:12]}  Rb8 {[%clk 0:00:25]} 28. Rd3 {[%clk 0:01:07]}  f5 {[%clk 0:00:22]} 29. Re1 {[%clk 0:01:05]}  Bf6 {[%clk 0:00:15]} 30. exf5 {[%clk 0:01:03]}  exf5 {[%clk 0:00:16]} 31. Rd5 {[%clk 0:00:56]}  Rxd5 {[%clk 0:00:12]} 32. Bxd5+ {[%clk 0:00:57]}  Kh8 {[%clk 0:00:12]} 33. Nxa5 {[%clk 0:00:52]}  Bc3 {[%clk 0:00:12]} 34. Nc6 {[%clk 0:00:51]}  Rb7 {[%clk 0:00:08]} 35. Ne5 {[%clk 0:00:35]}  Bxe1 {[%clk 0:00:06]} 36. Nxg6+ {[%clk 0:00:35]}  Kh7 {[%clk 0:00:07]} 37. Nf8+ {[%clk 0:00:36]}  Kh8 {[%clk 0:00:07]} 38. Bxb7 {[%clk 0:00:36]} 1-0


[Site "https://www.chess.com"]